[Event "14e Open International de Quenza"]
[Site "Quenza, France"]
[Date "????.??.??"]
[Round "2.6"]
[White "Maurizzi, Marc Andria"]
[Black "Depau, Alessandro"]
[Result "0-1"]
[TimeControl "5min+3s"]
[WhiteElo "2604"]
[BlackElo "1940"]

1. e4 {[%clk 00:05:03]} {[%emt 00:00:02]} e5 {[%clk 00:05:03]} {[%emt
00:00:01]} 2. Nf3 {[%clk 00:05:03]} {[%emt 00:00:01]} Nc6 {[%clk 00:05:03]}
{[%emt 00:00:01]} 3. Bb5 {[%clk 00:05:03]} a6 {[%clk 00:05:03]} {[%emt
00:00:02]} 4. Ba4 {[%clk 00:05:03]} f5 {[%clk 00:05:03]} 5. Nc3 {[%clk
00:04:57]} {[%emt 00:00:10]} Nf6 {[%clk 00:05:03]} {[%emt 00:00:01]} 6. Qe2
{[%clk 00:04:51]} {[%emt 00:00:09]} d6 {[%clk 00:04:33]} {[%emt 00:00:33]} 7.
d4 {[%clk 00:04:44]} {[%emt 00:00:10]} b5 {[%clk 00:04:12]} {[%emt 00:00:24]} 8.
Bb3 {[%clk 00:04:44]} {[%emt 00:00:01]} exd4 {[%clk 00:02:49]} {[%emt
00:01:25]} 9. exf5+ {[%clk 00:04:44]} {[%emt 00:00:01]} Qe7 {[%clk 00:02:49]}
{[%emt 00:00:03]} 10. Nd5 {[%clk 00:04:44]} Qxe2+ {[%clk 00:02:45]} {[%emt
00:00:07]} 11. Kxe2 {[%emt 00:00:33]} Kd7 {[%clk 00:02:16]} 12. Nf4 {[%clk
00:04:35]} {[%emt 00:00:11]} Bb7 {[%clk 00:02:01]} {[%emt 00:00:19]} 13. Be6+
{[%clk 00:04:35]} {[%emt 00:00:01]} Kd8 {[%clk 00:02:01]} 14. Rd1 {[%clk
00:04:35]} {[%emt 00:00:01]} Be7 {[%clk 00:01:31]} {[%emt 00:00:33]} 15. Nxd4
{[%clk 00:04:18]} {[%emt 00:00:21]} Nxd4+ {[%clk 00:01:29]} {[%emt 00:00:05]}
16. Rxd4 {[%clk 00:04:18]} Ne4 {[%clk 00:01:01]} {[%emt 00:00:31]} 17. Bd5
{[%clk 00:04:12]} {[%emt 00:00:09]} Nc5 {[%clk 00:01:01]} {[%emt 00:00:03]} 18.
Bxb7 Nxb7 {[%clk 00:01:01]} 19. a4 {[%clk 00:03:47]} {[%emt 00:00:25]} Kd7
{[%clk 00:01:01]} {[%emt 00:00:02]} 20. Ne6 {[%clk 00:03:47]} {[%emt 00:00:02]}
Bf6 {[%clk 00:01:01]} 21. Rd1 {[%clk 00:03:45]} {[%emt 00:00:04]} Rhe8 {[%clk
00:01:01]} {[%emt 00:00:03]} 22. Kf3 {[%clk 00:03:45]} {[%emt 00:00:03]} b4
{[%clk 00:01:01]} {[%emt 00:00:03]} 23. g4 {[%clk 00:03:41]} {[%emt 00:00:07]}
h6 {[%clk 00:01:01]} {[%emt 00:00:01]} 24. Bd2 {[%clk 00:03:39]} {[%emt
00:00:06]} a5 {[%clk 00:01:01]} {[%emt 00:00:01]} 25. c3 {[%clk 00:03:39]}
{[%emt 00:00:02]} Nc5 {[%clk 00:01:00]} {[%emt 00:00:04]} 26. Nxc5+ {[%clk
00:03:39]} {[%emt 00:00:02]} dxc5 {[%clk 00:01:00]} {[%emt 00:00:01]} 27. cxb4
{[%clk 00:03:36]} {[%emt 00:00:05]} Kc6 {[%clk 00:00:57]} {[%emt 00:00:05]} 28.
b5+ {[%clk 00:03:35]} {[%emt 00:00:05]} Kb6 {[%clk 00:00:57]} {[%emt 00:00:02]}
29. Bc3 {[%clk 00:03:35]} {[%emt 00:00:01]} Rad8 {[%clk 00:00:56]} {[%emt
00:00:04]} 30. Rxd8 {[%clk 00:03:21]} {[%emt 00:00:17]} Rxd8 {[%clk 00:00:56]}
{[%emt 00:00:01]} 31. Re1 {[%clk 00:03:21]} {[%emt 00:00:02]} Bxc3 {[%clk
00:00:51]} {[%emt 00:00:08]} 32. bxc3 {[%clk 00:03:21]} Rd3+ {[%clk 00:00:34]}
{[%emt 00:00:21]} 33. Re3 {[%clk 00:03:21]} {[%emt 00:00:01]} c4 {[%clk
00:00:34]} 34. Rxd3 {[%clk 00:03:21]} {[%emt 00:00:02]} cxd3 {[%clk 00:00:34]}
{[%emt 00:00:01]} 35. Ke3 {[%clk 00:03:21]} {[%emt 00:00:01]} 0-1

[Event "14e Open International de Quenza"]
[Site "Quenza, France"]
[Date "????.??.??"]
[Round "2.7"]
[White "Sabiani, Chjara"]
[Black "Terrieux, Kevin"]
[Result "0-1"]
[TimeControl "5min+3s"]
[WhiteElo "1843"]
[BlackElo "2394"]

1. d4 {[%clk 00:05:03]} d5 {[%clk 00:05:03]} {[%emt 00:00:02]} 2. c4 {[%clk
00:05:03]} {[%emt 00:00:01]} dxc4 {[%clk 00:05:03]} {[%emt 00:00:02]} 3. Nf3
{[%clk 00:05:03]} {[%emt 00:00:02]} Nf6 {[%clk 00:05:03]} {[%emt 00:00:02]} 4.
e3 {[%clk 00:05:03]} {[%emt 00:00:02]} Bg4 {[%clk 00:05:03]} {[%emt 00:00:01]}
5. Bxc4 {[%clk 00:05:03]} {[%emt 00:00:04]} e6 {[%clk 00:05:03]} 6. O-O {[%clk
00:05:03]} {[%emt 00:00:03]} Nc6 {[%clk 00:05:03]} {[%emt 00:00:02]} 7. Nc3
{[%clk 00:05:00]} {[%emt 00:00:06]} Bd6 {[%clk 00:04:57]} {[%emt 00:00:10]} 8.
h3 {[%clk 00:04:52]} {[%emt 00:00:10]} Bh5 {[%clk 00:04:57]} {[%emt 00:00:03]}
9. Re1 {[%clk 00:04:47]} {[%emt 00:00:07]} O-O {[%clk 00:04:54]} {[%emt
00:00:07]} 10. Be2 {[%clk 00:04:43]} {[%emt 00:00:07]} Qe8 {[%clk 00:04:12]}
{[%emt 00:00:45]} 11. Nd2 {[%clk 00:04:21]} {[%emt 00:00:25]} Bxe2 {[%clk
00:04:08]} {[%emt 00:00:07]} 12. Qxe2 {[%clk 00:04:21]} {[%emt 00:00:02]} a6
{[%clk 00:03:54]} {[%emt 00:00:17]} 13. Nde4 {[%clk 00:04:05]} {[%emt
00:00:18]} Nxe4 {[%clk 00:03:51]} {[%emt 00:00:05]} 14. Nxe4 {[%clk 00:04:05]}
{[%emt 00:00:02]} f5 {[%clk 00:03:37]} {[%emt 00:00:18]} 15. Nxd6 {[%clk
00:03:47]} {[%emt 00:00:21]} cxd6 {[%clk 00:03:37]} {[%emt 00:00:02]} 16. Bd2
{[%clk 00:03:40]} {[%emt 00:00:10]} d5 {[%clk 00:03:26]} {[%emt 00:00:14]} 17.
Rac1 {[%clk 00:03:33]} {[%emt 00:00:10]} Qd7 {[%clk 00:03:21]} {[%emt
00:00:09]} 18. Bc3 {[%clk 00:03:24]} {[%emt 00:00:11]} Rae8 {[%clk 00:03:11]}
{[%emt 00:00:13]} 19. Qd2 {[%clk 00:03:21]} {[%emt 00:00:06]} Qd6 {[%clk
00:02:56]} {[%emt 00:00:19]} 20. Rcd1 {[%clk 00:03:18]} {[%emt 00:00:06]} Rf7
{[%clk 00:02:56]} {[%emt 00:00:03]} 21. f3 {[%clk 00:03:14]} {[%emt 00:00:07]}
h6 {[%clk 00:02:50]} {[%emt 00:00:08]} 22. e4 {[%clk 00:03:09]} {[%emt
00:00:08]} fxe4 {[%clk 00:02:50]} {[%emt 00:00:03]} 23. fxe4 {[%clk 00:03:09]}
{[%emt 00:00:01]} Ref8 {[%clk 00:02:50]} {[%emt 00:00:02]} 24. e5 {[%clk
00:02:59]} {[%emt 00:00:12]} Qe7 {[%clk 00:02:48]} {[%emt 00:00:05]} 25. Rf1
{[%clk 00:02:59]} {[%emt 00:00:02]} Qh4 {[%clk 00:02:47]} {[%emt 00:00:03]} 26.
Rxf7 {[%clk 00:02:47]} {[%emt 00:00:16]} Rxf7 {[%clk 00:02:47]} {[%emt
00:00:02]} 27. Rf1 {[%clk 00:02:40]} {[%emt 00:00:10]} Rxf1+ {[%clk 00:02:46]}
{[%emt 00:00:05]} 28. Kxf1 {[%clk 00:02:40]} {[%emt 00:00:01]} Qe4 {[%clk
00:02:45]} {[%emt 00:00:04]} 29. Qe1 {[%clk 00:02:15]} {[%emt 00:00:28]} Qd3+
{[%clk 00:02:43]} {[%emt 00:00:05]} 30. Qe2 {[%clk 00:02:11]} {[%emt 00:00:07]}
Qb1+ {[%clk 00:02:41]} {[%emt 00:00:05]} 31. Kf2 {[%clk 00:02:10]} {[%emt
00:00:04]} Qf5+ {[%clk 00:01:25]} {[%emt 00:01:19]} 32. Qf3 {[%clk 00:02:03]}
{[%emt 00:00:10]} Qg6 {[%clk 00:01:24]} {[%emt 00:00:03]} 33. a3 {[%clk
00:01:57]} {[%emt 00:00:10]} b6 {[%clk 00:01:13]} {[%emt 00:00:14]} 34. Qe2
{[%clk 00:01:48]} {[%emt 00:00:12]} b5 {[%clk 00:01:08]} {[%emt 00:00:08]} 35.
Qf3 {[%clk 00:01:28]} {[%emt 00:00:22]} Kh7 {[%clk 00:01:05]} {[%emt 00:00:06]}
36. Qe2 {[%clk 00:01:27]} {[%emt 00:00:04]} Ne7 {[%clk 00:00:42]} {[%emt
00:00:25]} 37. a4 {[%clk 00:01:16]} {[%emt 00:00:14]} bxa4 {[%clk 00:00:38]}
{[%emt 00:00:07]} 38. Qxa6 {[%clk 00:01:16]} {[%emt 00:00:02]} Nf5 {[%clk
00:00:38]} {[%emt 00:00:02]} 39. Qd3 {[%clk 00:00:53]} {[%emt 00:00:26]} h5
{[%clk 00:00:38]} {[%emt 00:00:01]} 40. Kg1 {[%clk 00:00:51]} {[%emt 00:00:05]}
h4 {[%clk 00:00:38]} 41. Qc2 {[%clk 00:00:51]} {[%emt 00:00:03]} Qg5 {[%clk
00:00:35]} {[%emt 00:00:04]} 42. Qf2 {[%clk 00:00:49]} {[%emt 00:00:07]} Ng3
{[%clk 00:00:33]} {[%emt 00:00:05]} 43. Bd2 {[%clk 00:00:43]} {[%emt 00:00:09]}
Qg6 {[%clk 00:00:33]} {[%emt 00:00:03]} 44. Bc3 {[%clk 00:00:41]} {[%emt
00:00:05]} Qb1+ {[%clk 00:00:33]} {[%emt 00:00:03]} 45. Qe1 {[%clk 00:00:40]}
{[%emt 00:00:03]} Qd3 {[%clk 00:00:27]} {[%emt 00:00:09]} 46. Qf2 {[%clk
00:00:35]} {[%emt 00:00:08]} a3 {[%clk 00:00:27]} {[%emt 00:00:03]} 47. Qe1
{[%clk 00:00:35]} {[%emt 00:00:03]} a2 {[%clk 00:00:27]} {[%emt 00:00:02]} 48.
b4 {[%clk 00:00:35]} {[%emt 00:00:02]} Ne2+ {[%clk 00:00:27]} {[%emt 00:00:02]}
49. Kh1 {[%clk 00:00:34]} {[%emt 00:00:03]} Nxc3 {[%clk 00:00:20]} {[%emt
00:00:10]} 50. Qxh4+ {[%clk 00:00:34]} {[%emt 00:00:01]} Kg8 {[%clk 00:00:20]}
51. Qd8+ {[%clk 00:00:34]} {[%emt 00:00:03]} Kf7 {[%clk 00:00:20]} {[%emt
00:00:02]} 52. Qd7+ {[%clk 00:00:34]} {[%emt 00:00:04]} Kg6 {[%clk 00:00:18]}
{[%emt 00:00:05]} 53. Qxe6+ {[%clk 00:00:34]} {[%emt 00:00:02]} Kh7 {[%clk
00:00:18]} 0-1

[Event "14e Open International de Quenza"]
[Site "Quenza, France"]
[Date "????.??.??"]
[Round "2.8"]
[White "Sumets, Andrey"]
[Black "Deladerriere, Calypso"]
[Result "1-0"]
[TimeControl "5min+3s"]
[WhiteElo "2497"]
[BlackElo "2060"]

1. d4 {[%clk 00:05:03]} Nf6 {[%clk 00:05:03]} {[%emt 00:00:02]} 2. c4 {[%clk
00:05:03]} e6 {[%clk 00:05:03]} {[%emt 00:00:03]} 3. Nf3 {[%clk 00:05:03]}
{[%emt 00:00:01]} d5 {[%clk 00:05:03]} {[%emt 00:00:02]} 4. g3 {[%clk
00:05:03]} Be7 {[%clk 00:04:50]} {[%emt 00:00:18]} 5. Bg2 {[%clk 00:05:03]}
{[%emt 00:00:02]} c6 {[%clk 00:04:47]} {[%emt 00:00:06]} 6. O-O {[%clk
00:05:03]} {[%emt 00:00:03]} O-O {[%clk 00:04:47]} {[%emt 00:00:02]} 7. Qc2
{[%clk 00:04:48]} {[%emt 00:00:18]} Nbd7 {[%clk 00:04:42]} {[%emt 00:00:09]} 8.
Nbd2 {[%clk 00:04:42]} {[%emt 00:00:09]} c5 {[%clk 00:04:35]} {[%emt 00:00:11]}
9. dxc5 {[%clk 00:04:18]} {[%emt 00:00:27]} Nxc5 {[%clk 00:04:07]} {[%emt
00:00:31]} 10. b3 {[%clk 00:04:10]} {[%emt 00:00:10]} Bd7 {[%clk 00:03:45]}
{[%emt 00:00:25]} 11. Bb2 {[%clk 00:04:10]} {[%emt 00:00:03]} Rc8 {[%clk
00:03:44]} {[%emt 00:00:05]} 12. Rad1 {[%clk 00:04:07]} {[%emt 00:00:05]} Qc7
{[%clk 00:03:13]} {[%emt 00:00:35]} 13. Ng5 {[%clk 00:03:48]} {[%emt 00:00:21]}
e5 {[%clk 00:02:37]} {[%emt 00:00:40]} 14. cxd5 {[%clk 00:03:33]} {[%emt
00:00:17]} h6 {[%clk 00:02:37]} {[%emt 00:00:02]} 15. Ngf3 {[%clk 00:03:31]}
{[%emt 00:00:04]} Nxd5 {[%clk 00:01:58]} {[%emt 00:00:43]} 16. Bxe5 {[%clk
00:03:08]} {[%emt 00:00:26]} Qa5 {[%clk 00:01:33]} {[%emt 00:00:28]} 17. Nc4
{[%clk 00:03:05]} {[%emt 00:00:06]} Nb4 {[%clk 00:01:12]} {[%emt 00:00:25]} 18.
Qc3 {[%clk 00:02:47]} {[%emt 00:00:18]} Qa6 {[%clk 00:00:47]} {[%emt 00:00:30]}
19. Qxb4 {[%clk 00:02:39]} {[%emt 00:00:11]} 1-0

[Event "14e Open International de Quenza"]
[Site "Quenza, France"]
[Date "????.??.??"]
[Round "2.9"]
[White "Castagnerol, Cerise"]
[Black "Toktomushev, Teimur"]
[Result "0-1"]
[TimeControl "5min+3s"]
[WhiteElo "1866"]
[BlackElo "2401"]

1. d4 {[%clk 00:05:03]} {[%emt 00:00:01]} d5 {[%clk 00:05:03]} {[%emt
00:00:02]} 2. c4 {[%clk 00:05:03]} {[%emt 00:00:02]} e6 {[%clk 00:05:03]}
{[%emt 00:00:01]} 3. Nf3 {[%clk 00:05:03]} {[%emt 00:00:02]} Nf6 {[%clk
00:05:03]} {[%emt 00:00:01]} 4. g3 {[%clk 00:05:03]} {[%emt 00:00:01]} Be7
{[%clk 00:05:03]} {[%emt 00:00:02]} 5. Bg2 {[%clk 00:05:03]} {[%emt 00:00:02]}
O-O {[%clk 00:05:03]} {[%emt 00:00:02]} 6. O-O {[%clk 00:05:03]} {[%emt
00:00:02]} c6 {[%clk 00:05:03]} {[%emt 00:00:02]} 7. Nbd2 {[%clk 00:05:01]}
{[%emt 00:00:05]} b6 {[%clk 00:04:32]} {[%emt 00:00:35]} 8. Qc2 {[%clk
00:04:56]} {[%emt 00:00:08]} c5 {[%clk 00:04:12]} {[%emt 00:00:24]} 9. e3
{[%clk 00:04:37]} {[%emt 00:00:22]} Nc6 {[%clk 00:04:06]} {[%emt 00:00:09]} 10.
a3 {[%clk 00:04:24]} {[%emt 00:00:16]} Bb7 {[%clk 00:04:01]} {[%emt 00:00:08]}
11. Nb3 {[%clk 00:04:19]} {[%emt 00:00:08]} Ba6 {[%clk 00:03:40]} {[%emt
00:00:24]} 12. Nfd2 {[%clk 00:03:55]} {[%emt 00:00:26]} cxd4 {[%clk 00:03:38]}
{[%emt 00:00:05]} 13. exd4 {[%clk 00:03:09]} {[%emt 00:00:49]} Rc8 {[%clk
00:03:38]} {[%emt 00:00:03]} 14. Nf3 {[%clk 00:01:45]} {[%emt 00:01:27]} dxc4
{[%clk 00:03:33]} {[%emt 00:00:09]} 15. Nbd2 {[%clk 00:01:35]} {[%emt
00:00:13]} c3 {[%clk 00:03:28]} {[%emt 00:00:07]} 16. bxc3 {[%clk 00:01:09]}
{[%emt 00:00:29]} Bxf1 {[%clk 00:03:28]} {[%emt 00:00:02]} 17. Nxf1 {[%clk
00:00:58]} {[%emt 00:00:14]} Nxd4 {[%clk 00:03:19]} {[%emt 00:00:12]} 18. Qb2
{[%clk 00:00:45]} {[%emt 00:00:16]} Nxf3+ {[%clk 00:03:17]} {[%emt 00:00:06]}
19. Bxf3 {[%clk 00:00:45]} {[%emt 00:00:01]} Qd3 {[%clk 00:03:06]} {[%emt
00:00:13]} 20. Be3 {[%clk 00:00:32]} {[%emt 00:00:17]} Qxc3 {[%clk 00:02:56]}
{[%emt 00:00:13]} 21. Qxc3 {[%clk 00:00:18]} {[%emt 00:00:17]} Rxc3 {[%clk
00:02:56]} {[%emt 00:00:01]} 22. a4 {[%clk 00:00:08]} {[%emt 00:00:13]} Bc5
{[%clk 00:02:53]} {[%emt 00:00:05]} 23. Bxc5 {[%clk 00:00:07]} {[%emt
00:00:04]} Rxc5 {[%clk 00:02:53]} {[%emt 00:00:01]} 24. Ne3 {[%clk 00:00:07]}
{[%emt 00:00:04]} g6 {[%clk 00:02:52]} {[%emt 00:00:04]} 25. Kf1 {[%clk
00:00:07]} {[%emt 00:00:03]} Rfc8 {[%clk 00:02:52]} {[%emt 00:00:03]} 26. Ke2
{[%clk 00:00:06]} {[%emt 00:00:03]} Nd7 {[%clk 00:02:43]} {[%emt 00:00:12]} 27.
Be4 {[%clk 00:00:04]} {[%emt 00:00:05]} Ne5 {[%clk 00:02:40]} {[%emt 00:00:06]}
28. f4 {[%clk 00:00:04]} {[%emt 00:00:02]} Nc4 {[%clk 00:02:33]} {[%emt
00:00:10]} 29. Ng4 {[%clk 00:00:04]} {[%emt 00:00:01]} Kg7 {[%clk 00:02:33]}
{[%emt 00:00:02]} 30. Bd3 {[%clk 00:00:04]} {[%emt 00:00:03]} Nb2 {[%clk
00:02:30]} {[%emt 00:00:06]} 31. Be4 {[%clk 00:00:04]} {[%emt 00:00:04]} f5
{[%clk 00:02:30]} {[%emt 00:00:02]} 0-1

[Event "14e Open International de Quenza"]
[Site "Quenza, France"]
[Date "????.??.??"]
[Round "2.10"]
[White "Skripchenko, Almira"]
[Black "Ardu, Luigi"]
[Result "0-1"]
[TimeControl "5min+3s"]
[WhiteElo "2359"]
[BlackElo "1823"]

1. e4 {[%clk 00:05:03]} {[%emt 00:00:02]} e5 {[%clk 00:05:03]} {[%emt
00:00:02]} 2. Nf3 {[%clk 00:05:03]} {[%emt 00:00:01]} Nc6 {[%clk 00:05:03]}
{[%emt 00:00:01]} 3. Bb5 {[%clk 00:05:03]} {[%emt 00:00:01]} Nf6 {[%clk
00:05:03]} {[%emt 00:00:02]} 4. d3 {[%clk 00:05:03]} {[%emt 00:00:01]} a6
{[%clk 00:05:03]} {[%emt 00:00:02]} 5. Bxc6 {[%clk 00:05:03]} {[%emt 00:00:03]}
dxc6 {[%clk 00:04:59]} {[%emt 00:00:08]} 6. Nxe5 {[%clk 00:05:03]} {[%emt
00:00:02]} Bc5 {[%clk 00:04:47]} {[%emt 00:00:14]} 7. Nf3 {[%clk 00:04:57]}
{[%emt 00:00:09]} Bg4 {[%clk 00:04:47]} {[%emt 00:00:04]} 8. Nbd2 {[%clk
00:04:40]} {[%emt 00:00:20]} Qe7 {[%clk 00:04:45]} {[%emt 00:00:04]} 9. h3
{[%clk 00:04:38]} {[%emt 00:00:05]} Bh5 {[%clk 00:04:42]} {[%emt 00:00:06]} 10.
Qe2 {[%clk 00:04:04]} {[%emt 00:00:38]} O-O-O {[%clk 00:04:41]} {[%emt
00:00:04]} 11. Nb3 {[%clk 00:03:42]} {[%emt 00:00:25]} Bb6 {[%clk 00:04:32]}
{[%emt 00:00:11]} 12. Be3 {[%clk 00:03:42]} {[%emt 00:00:02]} Bxe3 {[%clk
00:04:19]} {[%emt 00:00:15]} 13. Qxe3 {[%clk 00:03:42]} {[%emt 00:00:03]} Qb4+
{[%clk 00:04:07]} {[%emt 00:00:15]} 14. c3 {[%clk 00:03:39]} {[%emt 00:00:06]}
Qe7 {[%clk 00:03:52]} {[%emt 00:00:18]} 15. O-O-O {[%clk 00:03:30]} {[%emt
00:00:12]} Kb8 {[%clk 00:03:52]} {[%emt 00:00:03]} 16. g4 {[%clk 00:03:19]}
{[%emt 00:00:14]} Bg6 {[%clk 00:03:52]} {[%emt 00:00:03]} 17. Nfd4 {[%clk
00:03:13]} {[%emt 00:00:09]} h5 {[%clk 00:03:44]} {[%emt 00:00:11]} 18. Rhg1
{[%clk 00:03:13]} {[%emt 00:00:04]} hxg4 {[%clk 00:03:39]} {[%emt 00:00:08]} 19.
hxg4 {[%clk 00:03:13]} {[%emt 00:00:02]} c5 {[%clk 00:03:22]} {[%emt 00:00:20]}
20. Nf5 {[%clk 00:02:58]} {[%emt 00:00:18]} Bxf5 {[%clk 00:03:08]} {[%emt
00:00:17]} 21. gxf5 {[%clk 00:02:44]} {[%emt 00:00:17]} b6 {[%clk 00:02:55]}
{[%emt 00:00:15]} 22. Rxg7 {[%clk 00:02:39]} {[%emt 00:00:08]} Rh2 {[%clk
00:02:37]} {[%emt 00:00:21]} 23. Qg3 {[%clk 00:01:48]} {[%emt 00:00:54]} Rdh8
{[%clk 00:02:28]} {[%emt 00:00:11]} 24. Qe3 {[%clk 00:01:06]} {[%emt 00:00:46]}
R8h3 {[%clk 00:02:11]} {[%emt 00:00:20]} 25. Qe2 {[%clk 00:00:51]} {[%emt
00:00:18]} Qe5 {[%clk 00:01:56]} {[%emt 00:00:17]} 26. Rxf7 {[%clk 00:00:50]}
{[%emt 00:00:04]} Qf4+ {[%clk 00:01:52]} {[%emt 00:00:07]} 27. Rd2 {[%clk
00:00:50]} {[%emt 00:00:02]} Ng4 {[%clk 00:01:36]} {[%emt 00:00:18]} 28. d4
{[%clk 00:00:40]} {[%emt 00:00:14]} Rxf2 {[%clk 00:01:31]} {[%emt 00:00:07]} 29.
Qxa6 {[%emt 00:00:06]} Rh1+ {[%emt 00:00:13]} 30. Kc2 {[%clk 00:00:24]} {[%emt
00:00:04]} Ne3+ {[%clk 00:01:10]} {[%emt 00:00:24]} 31. Kd3 {[%clk 00:00:24]}
c4+ {[%clk 00:01:10]} {[%emt 00:00:01]} 32. Qxc4 {[%clk 00:00:22]} {[%emt
00:00:05]} Nxc4 {[%clk 00:01:10]} {[%emt 00:00:03]} 33. Rxf2 {[%clk 00:00:22]}
{[%emt 00:00:02]} Qxf2 {[%clk 00:01:05]} {[%emt 00:00:08]} 34. Kxc4 {[%clk
00:00:22]} {[%emt 00:00:02]} Qe2+ {[%clk 00:01:02]} {[%emt 00:00:06]} 35. Kd5
{[%clk 00:00:22]} {[%emt 00:00:03]} Qb5+ {[%clk 00:00:57]} {[%emt 00:00:07]} 36.
Ke6 {[%clk 00:00:16]} {[%emt 00:00:10]} Rh6+ {[%clk 00:00:56]} {[%emt
00:00:04]} 37. f6 {[%clk 00:00:16]} {[%emt 00:00:02]} Qc4+ {[%clk 00:00:49]}
{[%emt 00:00:10]} 38. Ke7 {[%clk 00:00:15]} {[%emt 00:00:04]} Qc6 {[%clk
00:00:30]} {[%emt 00:00:20]} 39. d5 {[%clk 00:00:15]} {[%emt 00:00:04]} Qd6+
{[%clk 00:00:30]} {[%emt 00:00:02]} 40. Ke8 {[%clk 00:00:15]} {[%emt 00:00:02]}
Rh8 {[%clk 00:00:30]} {[%emt 00:00:01]} 0-1

[Event "14e Open International de Quenza"]
[Site "Quenza, France"]
[Date "????.??.??"]
[Round "2.11"]
[White "Chokbengboun, Thomas"]
[Black "Ratier-Fontana, Matteo"]
[Result "0-1"]
[TimeControl "5min+3s"]
[WhiteElo "1841"]
[BlackElo "2275"]

1. d4 {[%clk 00:05:03]} Nf6 {[%clk 00:05:03]} {[%emt 00:00:01]} 2. Nf3 {[%clk
00:05:03]} {[%emt 00:00:03]} b6 {[%clk 00:05:01]} {[%emt 00:00:06]} 3. Bf4
{[%clk 00:05:02]} {[%emt 00:00:04]} Bb7 {[%clk 00:05:01]} {[%emt 00:00:02]} 4.
Nbd2 {[%clk 00:04:55]} {[%emt 00:00:09]} g6 {[%clk 00:05:00]} {[%emt 00:00:04]}
5. h3 {[%clk 00:04:55]} {[%emt 00:00:02]} Bg7 {[%clk 00:05:00]} {[%emt
00:00:02]} 6. e3 {[%clk 00:04:55]} {[%emt 00:00:01]} O-O {[%clk 00:05:00]}
{[%emt 00:00:03]} 7. Be2 {[%clk 00:04:54]} {[%emt 00:00:04]} d6 {[%clk
00:05:00]} {[%emt 00:00:02]} 8. O-O {[%clk 00:04:49]} {[%emt 00:00:08]} Nbd7
{[%clk 00:05:00]} {[%emt 00:00:02]} 9. Re1 {[%clk 00:04:47]} {[%emt 00:00:05]}
c5 {[%clk 00:04:46]} {[%emt 00:00:18]} 10. c3 {[%clk 00:04:47]} {[%emt
00:00:03]} Rc8 {[%clk 00:04:42]} {[%emt 00:00:06]} 11. Rc1 {[%clk 00:04:47]}
{[%emt 00:00:02]} Rc7 {[%clk 00:04:42]} {[%emt 00:00:03]} 12. Bg3 {[%clk
00:04:31]} {[%emt 00:00:18]} Qa8 {[%clk 00:04:42]} {[%emt 00:00:02]} 13. Bf1
{[%clk 00:04:26]} {[%emt 00:00:08]} Rfc8 {[%clk 00:04:40]} {[%emt 00:00:05]} 14.
Qe2 {[%clk 00:04:21]} {[%emt 00:00:08]} Ne4 {[%clk 00:04:32]} {[%emt 00:00:11]}
15. Nxe4 {[%clk 00:04:17]} {[%emt 00:00:07]} Bxe4 {[%clk 00:04:32]} {[%emt
00:00:02]} 16. Nd2 {[%clk 00:04:02]} {[%emt 00:00:19]} Bb7 {[%clk 00:04:32]}
{[%emt 00:00:02]} 17. f3 {[%clk 00:03:48]} {[%emt 00:00:16]} a6 {[%clk
00:04:32]} {[%emt 00:00:02]} 18. Rcd1 {[%clk 00:03:15]} {[%emt 00:00:36]} h6
{[%clk 00:04:31]} {[%emt 00:00:04]} 19. Bf2 {[%clk 00:03:13]} {[%emt 00:00:04]}
b5 {[%clk 00:04:22]} {[%emt 00:00:12]} 20. h4 {[%clk 00:03:13]} {[%emt
00:00:03]} h5 {[%clk 00:04:17]} {[%emt 00:00:07]} 21. g4 {[%clk 00:03:12]}
{[%emt 00:00:05]} hxg4 {[%clk 00:04:16]} {[%emt 00:00:04]} 22. fxg4 {[%clk
00:03:12]} {[%emt 00:00:02]} Nf6 {[%clk 00:04:15]} {[%emt 00:00:04]} 23. Bh3
{[%clk 00:03:09]} {[%emt 00:00:06]} Re8 {[%clk 00:04:11]} {[%emt 00:00:06]} 24.
Bg3 {[%clk 00:03:04]} {[%emt 00:00:08]} Ne4 {[%clk 00:04:03]} {[%emt 00:00:12]}
25. Nxe4 {[%clk 00:03:00]} {[%emt 00:00:07]} Bxe4 {[%clk 00:04:03]} {[%emt
00:00:02]} 26. Rf1 {[%clk 00:02:51]} {[%emt 00:00:12]} e5 {[%clk 00:03:57]}
{[%emt 00:00:09]} 27. Bg2 {[%clk 00:02:34]} {[%emt 00:00:20]} exd4 {[%clk
00:03:57]} {[%emt 00:00:04]} 28. Bxd6 {[%clk 00:02:06]} {[%emt 00:00:31]} Rc6
{[%clk 00:03:07]} {[%emt 00:00:52]} 29. Bf4 {[%clk 00:01:32]} {[%emt 00:00:37]}
Rce6 {[%clk 00:03:05]} {[%emt 00:00:05]} 30. cxd4 {[%clk 00:01:12]} {[%emt
00:00:24]} cxd4 {[%clk 00:03:05]} {[%emt 00:00:01]} 31. exd4 {[%clk 00:00:52]}
{[%emt 00:00:23]} Qd5 {[%clk 00:02:55]} {[%emt 00:00:13]} 32. Qf2 {[%clk
00:00:40]} {[%emt 00:00:15]} Bxg2 {[%clk 00:02:14]} {[%emt 00:00:44]} 33. Qxg2
{[%clk 00:00:37]} {[%emt 00:00:07]} Bxd4+ {[%clk 00:02:14]} {[%emt 00:00:01]}
34. Kh1 {[%clk 00:00:31]} {[%emt 00:00:08]} Qxg2+ {[%clk 00:02:14]} {[%emt
00:00:02]} 35. Kxg2 {[%clk 00:00:31]} {[%emt 00:00:02]} Re2+ {[%clk 00:02:14]}
36. Kf3 {[%clk 00:00:26]} {[%emt 00:00:08]} Bxb2 {[%clk 00:02:13]} {[%emt
00:00:04]} 37. h5 {[%clk 00:00:22]} {[%emt 00:00:07]} R2e6 {[%clk 00:01:42]}
{[%emt 00:00:34]} 38. hxg6 {[%clk 00:00:19]} {[%emt 00:00:06]} fxg6 {[%clk
00:01:32]} {[%emt 00:00:13]} 39. Rd7 {[%clk 00:00:18]} {[%emt 00:00:04]} Rf8
{[%clk 00:01:32]} {[%emt 00:00:04]} 40. Kg3 {[%clk 00:00:17]} {[%emt 00:00:03]}
Be5 {[%clk 00:01:31]} {[%emt 00:00:05]} 41. Bxe5 {[%clk 00:00:12]} {[%emt
00:00:08]} Rxf1 {[%clk 00:01:31]} {[%emt 00:00:02]} 0-1